fUST/lending_fUST_20241225
["ID","MTS","AMOUNT","RATE_DAILY","PERIOD"]
[346543812,1735066244661,-500.0,0.00013698,2]
[346543813,1735066244671,-500.0,0.00013698,2]
[346543814,1735066244682,-500.0,0.00013698,2]
[346543815,1735066244698,-500.0,0.00013698,2]
[346543816,1735066244707,-500.0,0.00013698,2]
[346543817,1735066244716,-500.0,0.00013698,2]
[346543818,1735066244725,-500.0,0.00013698,2]
[346543819,1735066244735,-295.72456444,0.00013698,2]
[346543820,1735066244746,-500.0,0.00013698,2]
[346543821,1735066244756,-500.0,0.00013698,2]
[346543822,1735066244766,-500.0,0.00013698,2]
[346543823,1735066244776,-1212.21,0.00013698,2]
[346543824,1735066244786,-500.0,0.00013698,2]
[346543825,1735066244796,-500.0,0.00013698,2]
[346543826,1735066244805,-1541.17,0.00013698,2]
[346543827,1735066244815,-500.0,0.00013698,2]
[346543828,1735066244824,-500.0,0.00013698,2]
[346543829,1735066244834,-500.0,0.00013698,2]
[346543830,1735066244844,-500.0,0.00013698,2]
[346543831,1735066244853,-500.0,0.00013698,2]
[346543832,1735066244862,-500.0,0.00013698,2]
[346543833,1735066244872,-500.0,0.00013698,2]
[346543834,1735066244882,-500.0,0.00013698,2]
[346543835,1735066244892,-500.0,0.00013698,2]
[346543836,1735066244901,-500.0,0.00013698,2]
[346543837,1735066244911,-151.0,0.00013698,2]
[346543838,1735066244920,-151.0,0.00013698,2]
[346543839,1735066244930,-1332.84,0.00013698,2]
[346543840,1735066244939,-151.0,0.00013698,2]
[346543841,1735066244949,-151.0,0.00013698,2]
[346543842,1735066244958,-4420.25,0.00013698,2]
[346543843,1735066244967,-500.0,0.00013698,2]
[346543844,1735066244977,-151.0,0.00013698,2]
[346543845,1735066244987,-151.0,0.00013698,2]
[346543846,1735066244997,-500.0,0.00013698,2]
[346543847,1735066245006,-500.0,0.00013698,2]
[346543848,1735066245016,-500.0,0.00013698,2]
[346543849,1735066245025,-500.0,0.00013698,2]
[346543850,1735066245035,-500.0,0.00013698,2]
[346543851,1735066245044,-529.25,0.00013698,2]
[346543852,1735066245054,-500.0,0.00013698,2]
[346543853,1735066245064,-763.54,0.00013698,2]
[346543854,1735066245074,-500.0,0.00013698,2]
[346543855,1735066245083,-549.30352517,0.00013698,2]
[346543856,1735066245093,-500.0,0.00013698,2]
[346543857,1735066245102,-500.0,0.00013698,2]
[346543858,1735066245111,-931.21,0.00013698,2]
[346543859,1735066245121,-501.59461399,0.00013698,2]
[346543860,1735066245130,-1262.88,0.00013698,2]
[346543861,1735066245140,-544.49333269,0.00013698,2]
[346543862,1735066245149,-151.0,0.00013698,2]
[346543863,1735066245158,-151.0,0.00013698,2]
[346543864,1735066245168,-168.895361,0.00013698,2]
[346543865,1735066245177,-500.0,0.00013698,2]
[346543866,1735066245188,-500.0,0.00013698,2]
[346543867,1735066245197,-500.0,0.00013698,2]
[346543868,1735066245207,-500.0,0.00013698,2]
[346543869,1735066245217,-500.0,0.00013698,2]
[346543870,1735066245226,-432.62673414,0.00013698,2]
[346543871,1735066245236,-500.0,0.00013698,2]
[346543872,1735066245246,-500.0,0.00013698,2]
[346543873,1735066245256,-151.0,0.00013698,2]
[346543874,1735066245266,-151.0,0.00013698,2]
[346543875,1735066245275,-500.0,0.00013698,2]
[346543876,1735066245285,-151.0,0.00013698,2]
[346543877,1735066245295,-151.0,0.00013698,2]
[346543878,1735066245464,-151.0,0.00013698,2]
[346543879,1735066245474,-151.0,0.00013698,2]
[346543880,1735066245484,-500.0,0.00013698,2]
[346543881,1735066245494,-521.62,0.00013698,2]
[346543882,1735066245503,-500.0,0.00013698,2]
[346543883,1735066245513,-500.0,0.00013698,2]
[346543884,1735066245522,-656.89,0.00013698,2]
[346543885,1735066245531,-500.0,0.00013698,2]
[346543886,1735066245541,-502.15276048,0.00013698,2]
[346543887,1735066245550,-500.0,0.00013698,2]
[346543888,1735066245559,-500.0,0.00013698,2]
[346543889,1735066245568,-500.0,0.00013698,2]
[346543890,1735066245578,-501.51882356,0.00013698,2]
[346543891,1735066245587,-500.0,0.00013698,2]
[346543892,1735066245596,-500.0,0.00013698,2]
[346543893,1735066245606,-500.0,0.00013698,2]
[346543894,1735066245615,-500.0,0.00013698,2]
[346543895,1735066245627,-500.0,0.00013698,2]
[346543896,1735066245637,-358.130859,0.00013698,2]
[346543897,1735066245646,-358.130859,0.00013698,2]
[346543898,1735066245655,-358.130859,0.00013698,2]
[346543899,1735066245664,-500.0,0.00013698,2]
[346543900,1735066245673,-2792.09,0.00013698,2]
[346543901,1735066245683,-508.92331951,0.00013698,2]
[346543902,1735066245691,-500.0,0.00013698,2]
[346543903,1735066245703,-516.43,0.00013698,2]
[346543904,1735066245713,-358.130859,0.00013698,2]
[346543905,1735066245722,-500.0,0.00013698,2]
[346543906,1735066245731,-500.0,0.00013698,2]
[346543907,1735066245741,-358.130859,0.00013698,2]
[346543908,1735066245750,-358.130859,0.00013698,2]
[346543909,1735066245759,-500.0,0.00013698,2]
[346543910,1735066245768,-500.0,0.00013698,2]
[346543911,1735066245776,-1437.07,0.00013698,2]
[346543912,1735066245786,-500.0,0.00013698,2]
[346543913,1735066245795,-369.51778233,0.00013698,2]
[346543914,1735066245804,-500.0,0.00013698,2]
[346543915,1735066245814,-500.0,0.00013698,2]
[346543916,1735066245823,-500.0,0.00013698,2]
[346543917,1735066245832,-239.890069,0.00013698,2]
[346543918,1735066245841,-239.890069,0.00013698,2]
[346543919,1735066245851,-239.890069,0.00013698,2]
[346543920,1735066245860,-160.858678,0.00013698,2]
[346543921,1735066245870,-239.890069,0.00013698,2]
[346543922,1735066245880,-160.858678,0.00013698,2]
[346543923,1735066245890,-239.890069,0.00013698,2]
[346543924,1735066245899,-239.890069,0.00013698,2]
[346543925,1735066245909,-500.0,0.00013698,2]
[346543926,1735066245919,-793.83,0.00013698,2]
[346543927,1735066245928,-160.858678,0.00013698,2]
[346543928,1735066245938,-160.858678,0.00013698,2]
[346543929,1735066245947,-517.75,0.00013698,2]
[346543930,1735066245957,-500.0,0.00013698,2]
[346543931,1735066245966,-613.4,0.00013698,2]
[346543932,1735066245975,-500.0,0.00013698,2]
[346543933,1735066245985,-500.0,0.00013698,2]
[346543934,1735066245994,-500.0,0.00013698,2]
[346543935,1735066246003,-500.0,0.00013698,2]
[346543936,1735066246013,-500.0,0.00013698,2]
[346543937,1735066246022,-500.0,0.00013698,2]
[346543938,1735066246032,-512.56,0.00013698,2]
[346543939,1735066246042,-500.0,0.00013698,2]
[346543940,1735066246051,-500.0,0.00013698,2]
[346543941,1735066246062,-182.415833,0.00013698,2]
[346543942,1735066246071,-500.0,0.00013698,2]
[346543943,1735066246080,-500.0,0.00013698,2]
[346543944,1735066246091,-2724.55,0.00013698,2]
[346543945,1735066246100,-500.0,0.00013698,2]
[346543946,1735066246109,-236.93,0.00013698,2]
[346543947,1735066246119,-609.82039449,0.00013698,2]
[346543948,1735066246128,-500.0,0.00013698,2]
[346543949,1735066246138,-500.0,0.00013698,2]
[346543950,1735066246147,-500.0,0.00013698,2]
[346543951,1735066246157,-151.0,0.00013698,2]
[346543952,1735066246166,-151.0,0.00013698,2]
[346543953,1735066246176,-500.0,0.00013698,2]
[346543954,1735066246187,-500.0,0.00013698,2]
[346543955,1735066246197,-502.29560854,0.00013698,2]
[346543956,1735066246207,-500.0,0.00013698,2]
[346543957,1735066246216,-501.78100557,0.00013698,2]
[346543958,1735066246225,-500.0,0.00013698,2]
[346543959,1735066246235,-500.0,0.00013698,2]
[346543960,1735066246245,-500.0,0.00013698,2]
[346543962,1735066246254,-501.65349514,0.00013698,2]
[346543964,1735066246264,-500.0,0.00013698,2]
[346543966,1735066246274,-747.24,0.00013698,2]
[346543967,1735066246285,-151.0,0.00013698,2]
[346543968,1735066246295,-151.0,0.00013698,2]
[346543969,1735066246305,-500.0,0.00013698,2]
[346543970,1735066246315,-151.0,0.00013698,2]
[346543972,1735066246325,-151.0,0.00013698,2]
[346543973,1735066246334,-500.0,0.00013698,2]
[346543975,1735066246343,-345.40602296,0.00013698,2]
[346543978,1735066246353,-211.317381,0.00013698,2]
[346543980,1735066246363,-500.0,0.00013698,2]
[346543982,1735066246372,-500.0,0.00013698,2]
[346543983,1735066246381,-500.0,0.00013698,2]
[346543984,1735066246391,-500.0,0.00013698,2]
[346543986,1735066246400,-500.0,0.00013698,2]
[346543988,1735066246409,-504.88930304,0.00013698,2]
[346543990,1735066246419,-500.0,0.00013698,2]
[346543993,1735066246429,-157.089396,0.00013698,2]
[346543996,1735066246438,-1870.46,0.00013698,2]
[346543999,1735066246448,-157.089396,0.00013698,2]
[346544001,1735066246457,-157.089396,0.00013698,2]
[346544002,1735066246467,-500.0,0.00013698,2]
[346544003,1735066246477,-157.089396,0.00013698,2]
[346544004,1735066246487,-157.089396,0.00013698,2]
[346544005,1735066246497,-157.089396,0.00013698,2]
[346544006,1735066246507,-500.0,0.00013698,2]
[346544007,1735066246517,-2069.84,0.00013698,2]
[346544008,1735066246527,-1043.43,0.00013698,2]
[346544009,1735066246536,-500.0,0.00013698,2]
[346544010,1735066246546,-500.0,0.00013698,2]
[346544011,1735066246555,-500.0,0.00013698,2]
[346544012,1735066246567,-500.0,0.00013698,2]
[346544013,1735066246576,-1198.6,0.00013698,2]
[346544014,1735066246586,-500.0,0.00013698,2]
[346544015,1735066246595,-1580.83,0.00013698,2]
[346544017,1735066246605,-500.0,0.00013698,2]
[346544018,1735066246620,-500.0,0.00013698,2]
[346544019,1735066246630,-500.0,0.00013698,2]
[346544020,1735066246639,-500.0,0.00013698,2]
[346544022,1735066246649,-1845.37,0.00013698,2]
[346544024,1735066246659,-674.3,0.00013698,2]
[346544025,1735066246668,-500.0,0.00013698,2]
[346544027,1735066246677,-1412.53,0.00013698,2]
[346544028,1735066246691,-2216.98,0.00013698,2]
[346544029,1735066246702,-500.0,0.00013698,2]
[346544030,1735066246711,-1449.12,0.00013698,2]
[346544031,1735066246721,-696.7,0.00013698,2]
[346544032,1735066246731,-2508.85,0.00013698,2]
[346544033,1735066246741,-813.94,0.00013698,2]
[346544034,1735066246752,-500.0,0.00013698,2]
[346544035,1735066246762,-1516.66,0.00013698,2]
[346544036,1735066246772,-151.0,0.00013698,2]
[346544037,1735066246782,-151.0,0.00013698,2]
[346544038,1735066246791,-249.52045489,0.00013698,2]
[346544039,1735066246801,-500.0,0.00013698,2]
[346544040,1735066246810,-626.01,0.00013698,2]
[346544041,1735066246820,-151.0,0.00013698,2]
[346544042,1735066246829,-151.0,0.00013698,2]
[346544044,1735066246839,-500.0,0.00013698,2]
[346544045,1735066246848,-500.0,0.00013698,2]
[346544047,1735066246858,-580.9706661,0.00013698,2]
[346544048,1735066246867,-1034.16,0.00013698,2]
[346544049,1735066246878,-500.0,0.00013698,2]
[346544050,1735066246887,-500.0,0.00013698,2]
[346544051,1735066246897,-500.0,0.00013698,2]
[346544052,1735066246907,-532.05,0.00013698,2]
[346544053,1735066246917,-500.0,0.00013698,2]
[346544054,1735066246927,-731.47,0.00013698,2]
[346544055,1735066246937,-500.0,0.00013698,2]
[346544056,1735066246947,-945.18,0.00013698,2]
[346544057,1735066246957,-502.14825933,0.00013698,2]
[346544058,1735066246966,-549.6,0.00013698,2]
[346544059,1735066246976,-500.0,0.00013698,2]
[346544060,1735066246985,-3454.12,0.00013698,2]
[346544061,1735066246995,-500.0,0.00013698,2]
[346544062,1735066247004,-500.0,0.00013698,2]
[346544063,1735066247013,-874.59,0.00013698,2]
[346544064,1735066247023,-278.36156378,0.00013698,2]
[346544065,1735066247033,-4857.84,0.00013698,2]
[346544066,1735066247042,-500.0,0.00013698,2]
[346544067,1735066247052,-1233.09,0.00013698,2]
[346544068,1735066247062,-500.0,0.00013698,2]
[346544069,1735066247071,-553.62,0.00013698,2]
[346544070,1735066247081,-1090.19,0.00013698,2]
[346544071,1735066247090,-500.0,0.00013698,2]
[346544072,1735066247100,-671.31,0.00013698,2]
[346544073,1735066247109,-500.0,0.00013698,2]
[346544074,1735066247118,-500.0,0.00013698,2]
[346544075,1735066247128,-500.0,0.00013698,2]
[346544076,1735066247138,-1128.64,0.00013698,2]
[346544077,1735066247147,-500.0,0.00013698,2]
[346544078,1735066247156,-500.0,0.00013698,2]
[346544079,1735066247166,-500.0,0.00013698,2]
[346544080,1735066247175,-500.0,0.00013698,2]
[346544081,1735066247186,-500.0,0.00013698,2]
[346544082,1735066247195,-635.61,0.00013698,2]
[346544083,1735066247204,-1825.51,0.00013698,2]
[346544084,1735066247214,-1226.21,0.00013698,2]
[346544085,1735066247224,-1394.61,0.00013698,2]
[346544086,1735066247234,-674.29,0.00013698,2]
[346544087,1735066247243,-1407.98,0.00013698,2]
[346544088,1735066247253,-500.0,0.00013698,2]
[346544089,1735066247263,-500.0,0.00013698,2]
[346544090,1735066247273,-500.0,0.00013698,2]
[346544091,1735066247282,-500.49,0.00013698,2]
[346544092,1735066247292,-1133.97,0.00013698,2]
[346544093,1735066247304,-500.0,0.00013698,2]
[346544094,1735066247314,-500.0,0.00013698,2]
[346544095,1735066247323,-500.0,0.00013698,2]
[346544096,1735066247333,-530.78,0.00013698,2]
[346544097,1735066247342,-500.0,0.00013698,2]
[346544098,1735066247351,-1734.56,0.00013698,2]
[346544099,1735066247360,-500.0,0.00013698,2]
[346544100,1735066247370,-500.0,0.00013698,2]
[346544101,1735066247379,-726.33,0.00013698,2]
[346544102,1735066247389,-500.0,0.00013698,2]
[346544103,1735066247398,-500.0,0.00013698,2]
[346544104,1735066247408,-1074.6,0.00013698,2]
[346544105,1735066247418,-500.0,0.00013698,2]
[346544106,1735066247428,-2458.44,0.00013698,2]
[346544107,1735066247441,-2760.48,0.00013698,2]
[346544108,1735066247451,-500.0,0.00013698,2]
[346544109,1735066247460,-500.0,0.00013698,2]
[346544110,1735066247469,-370.98413911,0.00013698,2]
[346544111,1735066247479,-500.0,0.00013698,2]
[346544112,1735066247488,-500.0,0.00013698,2]
[346544113,1735066247497,-500.0,0.00013698,2]
[346544114,1735066247507,-1438.7,0.00013698,2]
[346544115,1735066247516,-473.65150385,0.00013698,2]
[346544116,1735066247526,-904.46,0.00013698,2]
[346544117,1735066247535,-500.0,0.00013698,2]
[346544118,1735066247544,-500.0,0.00013698,2]
[346544119,1735066247554,-3170.11,0.00013698,2]
[346544120,1735066247563,-500.0,0.00013698,2]
[346544121,1735066247573,-151.0,0.00013698,2]
[346544122,1735066247582,-151.0,0.00013698,2]
[346544123,1735066247591,-151.0,0.00013698,2]
[346544124,1735066247601,-1141.28,0.00013698,2]
[346544125,1735066247614,-151.0,0.00013698,2]
[346544126,1735066247623,-1350.22,0.00013698,2]
[346544127,1735066247632,-151.0,0.00013698,2]
[346544128,1735066247642,-19844.9,0.00013698,2]
[346544129,1735066247651,-151.0,0.00013698,2]
[346544130,1735066247662,-500.0,0.00013698,2]
[346544131,1735066247671,-521.46,0.00013698,2]
[346544132,1735066247681,-500.0,0.00013698,2]
[346544133,1735066247690,-500.0,0.00013698,2]
[346544134,1735066247701,-500.0,0.00013698,2]
[346544135,1735066247711,-500.0,0.00013698,2]
[346544136,1735066247721,-440.0653364,0.00013698,2]
[346544137,1735066247731,-3563.43,0.00013698,2]
[346544138,1735066247740,-500.0,0.00013698,2]
[346544139,1735066247749,-500.0,0.00013698,2]
[346544140,1735066247758,-500.0,0.00013698,2]
[346544141,1735066247768,-500.0,0.00013698,2]
[346544142,1735066247778,-2675.35,0.00013698,2]
[346544143,1735066247787,-500.0,0.00013698,2]
[346544144,1735066247796,-500.0,0.00013698,2]
[346544145,1735066247805,-500.0,0.00013698,2]
[346544146,1735066247815,-1532.6,0.00013698,2]
[346544147,1735066247824,-500.0,0.00013698,2]
[346544148,1735066247834,-500.0,0.00013698,2]
[346544149,1735066247844,-1084.62,0.00013698,2]
[346544150,1735066247853,-500.0,0.00013698,2]
[346544151,1735066247863,-500.0,0.00013698,2]
[346544152,1735066247872,-151.0,0.00013698,2]
[346544153,1735066247883,-191.849861,0.00013698,2]
[346544154,1735066247893,-537.37,0.00013698,2]
[346544155,1735066247903,-500.0,0.00013698,2]
[346544156,1735066247912,-7950.88,0.00013698,2]
[346544157,1735066247923,-500.0,0.00013698,2]
[346544158,1735066247933,-500.0,0.00013698,2]
[346544159,1735066247942,-722.63,0.00013698,2]
[346544160,1735066247952,-500.0,0.00013698,2]
[346544161,1735066247961,-500.0,0.00013698,2]
[346544162,1735066247971,-500.0,0.00013698,2]
[346544163,1735066247980,-500.0,0.00013698,2]
[346544164,1735066247989,-500.0,0.00013698,2]
[346544165,1735066247998,-500.0,0.00013698,2]
[346544166,1735066248007,-1421.45,0.00013698,2]
[346544167,1735066248016,-500.0,0.00013698,2]
[346544168,1735066248025,-53774.9151961,0.00013698,2]
[346544169,1735066392047,1002.277243,0.00014,30]
[346544176,1735067157177,-418.89964774,0.00012443,2]
[346544177,1735067345097,-389.56135226,0.00012443,2]
[346544178,1735067358100,-500.0,0.00012673,2]
[346544179,1735067358120,-500.0,0.00012673,2]
[346544180,1735067358140,-300.0,0.00012695,2]
[346544181,1735067358161,-500.0,0.00012696,2]
[346544182,1735067358180,-383.92855011,0.00012696,2]
[346544183,1735067358200,-1208.95266857,0.00012696,2]
[346544184,1735067358222,-4013.6428816,0.00012696,2]
[346544185,1735067358243,-1193.3585029,0.00012697,2]
[346544186,1735067358265,-14352.88776959,0.00012697,2]
[346544187,1735067362126,-15747.94505654,0.00012697,2]
[346544188,1735067372117,-604.47633428,0.00012696,2]
[346544189,1735067372140,-13224.69670011,0.00012697,2]
[346544367,1735067438040,-300.0,0.00012696,2]
[346544368,1735067438050,-2006.82144081,0.00012696,2]
[346544369,1735067438059,-12119.80855919,0.00012697,2]
[346544370,1735067438071,-4633.70808809,0.00012697,2]
[346544371,1735067438083,-6492.95283703,0.00012697,2]
[346544372,1735067438094,-18705.09885506,0.00012697,2]
[346544373,1735067438127,-42598.58253742,0.00012697,2]
[346544374,1735067438139,-4222.76692401,0.00012697,2]
[346544375,1735067438153,-6343.73486127,0.00012697,2]
[346544411,1735067440275,-10757.57500088,0.00012697,2]
[346544425,1735067443212,-652445.93281081,0.00012697,2]
[346544426,1735067443221,-196.41278202,0.0001292,2]
[346544427,1735067443231,-255.297,0.0001302,2]
[346544428,1735067443241,-1000.0,0.00013221,2]
[346544429,1735067443251,-196.41278198,0.00013485,2]
[346544430,1735067443260,-428.1824248,0.000135,2]
[346544431,1735067443270,-308.0,0.00013567,2]
[346544432,1735067443279,-208.99,0.00013575,2]
[346544433,1735067443289,-666.0,0.00013598,2]
[346544434,1735067443298,-1000.0,0.00013655,2]
[346544435,1735067443310,-2286.78420529,0.0001368,2]
[346544436,1735067443321,-1000.0,0.00013694,2]
[346544437,1735067443330,-1000.0,0.00013694,2]
[346544438,1735067443340,-502.4733482,0.00013698,2]
[346544439,1735067443350,-500.49318762,0.00013698,2]
[346544440,1735067443359,-500.0,0.00013698,2]
[346544441,1735067443370,-509.66346961,0.00013698,2]
[346544442,1735067443380,-151.0,0.00013698,2]
[346544443,1735067443391,-500.0,0.00013698,2]
[346544444,1735067443401,-500.0,0.00013698,2]
[346544445,1735067443411,-526.91658418,0.00013698,2]
[346544446,1735067443421,-500.0,0.00013698,2]
[346544447,1735067443431,-151.0,0.00013698,2]
[346544448,1735067443441,-500.0,0.00013698,2]
[346544449,1735067443451,-507.6858105,0.00013698,2]
[346544450,1735067443460,-3540.07160983,0.00013698,2]
[346544451,1735067443470,-519.19840001,0.00013698,2]
[346544452,1735067443479,-512.05,0.00013698,2]
[346544453,1735067443489,-500.0,0.00013698,2]
[346544454,1735067443499,-500.0,0.00013698,2]
[346544455,1735067443508,-501.90071929,0.00013698,2]
[346544456,1735067443518,-500.0,0.00013698,2]
[346544457,1735067443527,-500.0,0.00013698,2]
[346544458,1735067443536,-500.0,0.00013698,2]
[346544459,1735067443545,-500.0,0.00013698,2]
[346544460,1735067443554,-151.0,0.00013698,2]
[346544461,1735067443564,-176.44081315,0.00013698,2]
[346544462,1735067443573,-505.10984882,0.00013698,2]
[346544463,1735067443582,-151.0,0.00013698,2]
[346544464,1735067443591,-531.07,0.00013698,2]
[346544465,1735067443601,-500.0,0.00013698,2]
[346544466,1735067443610,-500.0,0.00013698,2]
[346544467,1735067443619,-500.0,0.00013698,2]
[346544468,1735067443629,-500.0,0.00013698,2]
[346544469,1735067443639,-508.12066074,0.00013698,2]
[346544470,1735067443648,-500.0,0.00013698,2]
[346544471,1735067443659,-500.0,0.00013698,2]
[346544472,1735067443668,-500.0,0.00013698,2]
[346544473,1735067443678,-580.58399952,0.00013698,2]
[346544474,1735067443687,-501.84487671,0.00013698,2]
[346544475,1735067443696,-151.0,0.00013698,2]
[346544476,1735067443705,-151.0,0.00013698,2]
[346544477,1735067443715,-500.0,0.00013698,2]
[346544478,1735067443724,-500.0,0.00013698,2]
[346544479,1735067443733,-500.0,0.00013698,2]
[346544480,1735067443743,-500.0,0.00013698,2]
[346544481,1735067443753,-500.0,0.00013698,2]
[346544482,1735067443763,-637.37,0.00013698,2]
[346544483,1735067443773,-500.0,0.00013698,2]
[346544484,1735067443782,-563.9,0.00013698,2]
[346544485,1735067443791,-500.0,0.00013698,2]
[346544486,1735067443800,-500.0,0.00013698,2]
[346544487,1735067443809,-500.0,0.00013698,2]
[346544488,1735067443819,-500.0,0.00013698,2]
[346544489,1735067443828,-500.0,0.00013698,2]
[346544490,1735067443837,-500.0,0.00013698,2]
[346544491,1735067443847,-500.0,0.00013698,2]
[346544492,1735067443856,-1161.7,0.00013698,2]
[346544493,1735067443866,-500.0,0.00013698,2]
[346544494,1735067443875,-517.00251571,0.00013698,2]
[346544495,1735067443884,-500.0,0.00013698,2]
[346544496,1735067443893,-500.0,0.00013698,2]
[346544497,1735067443902,-1252.06,0.00013698,2]
[346544498,1735067443912,-500.0,0.00013698,2]
[346544499,1735067443921,-500.0,0.00013698,2]
[346544500,1735067443931,-155.16349085,0.00013698,2]
[346544501,1735067443940,-500.0,0.00013698,2]
[346544502,1735067443951,-1476.96,0.00013698,2]
[346544503,1735067443962,-500.0,0.00013698,2]
[346544504,1735067443971,-629.52,0.00013698,2]
[346544505,1735067443980,-500.0,0.00013698,2]
[346544506,1735067443990,-500.0,0.00013698,2]
[346544507,1735067444000,-500.0,0.00013698,2]
[346544508,1735067444009,-500.0,0.00013698,2]
[346544509,1735067444019,-500.0,0.00013698,2]
[346544510,1735067444030,-500.0,0.00013698,2]
[346544511,1735067444040,-500.0,0.00013698,2]
[346544512,1735067444050,-500.0,0.00013698,2]
[346544513,1735067444059,-500.0,0.00013698,2]
[346544514,1735067444069,-415.21764096,0.00013698,2]
[346544515,1735067444078,-2675.75,0.00013698,2]
[346544516,1735067444088,-500.0,0.00013698,2]
[346544517,1735067444097,-500.0,0.00013698,2]
[346544518,1735067444106,-968.32,0.00013698,2]
[346544519,1735067444117,-500.0,0.00013698,2]
[346544520,1735067444127,-500.0,0.00013698,2]
[346544521,1735067444137,-250.691601,0.00013698,2]
[346544522,1735067444146,-500.0,0.00013698,2]
[346544523,1735067444156,-250.691601,0.00013698,2]
[346544524,1735067444165,-250.691601,0.00013698,2]
[346544525,1735067444174,-696.57,0.00013698,2]
[346544526,1735067444183,-500.0,0.00013698,2]
[346544527,1735067444193,-731.73,0.00013698,2]
[346544528,1735067444203,-500.0,0.00013698,2]
[346544529,1735067444212,-500.0,0.00013698,2]
[346544530,1735067444222,-500.0,0.00013698,2]
[346544531,1735067444232,-500.0,0.00013698,2]
[346544532,1735067444241,-500.0,0.00013698,2]
[346544533,1735067444251,-500.0,0.00013698,2]
[346544534,1735067444260,-500.0,0.00013698,2]
[346544535,1735067444270,-4236.07,0.00013698,2]
[346544536,1735067444279,-1289.21,0.00013698,2]
[346544537,1735067444289,-500.0,0.00013698,2]
[346544538,1735067444299,-500.0,0.00013698,2]
[346544539,1735067444311,-500.0,0.00013698,2]
[346544540,1735067444320,-503.52497012,0.00013698,2]
[346544541,1735067444329,-528.03,0.00013698,2]
[346544542,1735067444339,-582.46,0.00013698,2]
[346544543,1735067444348,-500.0,0.00013698,2]
[346544544,1735067444358,-643.33,0.00013698,2]
[346544545,1735067444367,-500.0,0.00013698,2]
[346544546,1735067444377,-500.0,0.00013698,2]
[346544547,1735067444388,-500.0,0.00013698,2]
[346544548,1735067444398,-500.0,0.00013698,2]
[346544549,1735067444407,-500.0,0.00013698,2]
[346544550,1735067444416,-646.2,0.00013698,2]
[346544551,1735067444426,-500.0,0.00013698,2]
[346544552,1735067444435,-500.0,0.00013698,2]
[346544553,1735067444445,-500.0,0.00013698,2]
[346544554,1735067444455,-500.0,0.00013698,2]
[346544555,1735067444464,-500.0,0.00013698,2]
[346544556,1735067444474,-500.0,0.00013698,2]
[346544557,1735067444484,-500.0,0.00013698,2]
[346544558,1735067444494,-500.0,0.00013698,2]
[346544559,1735067444503,-515.96673574,0.00013698,2]
[346544560,1735067444513,-520.72,0.00013698,2]
[346544561,1735067444523,-371.29278506,0.00013698,2]
[346544562,1735067444532,-1377.19,0.00013698,2]
[346544563,1735067444542,-282.77619385,0.00013698,2]
[346544564,1735067444552,-500.0,0.00013698,2]
[346544565,1735067444562,-500.0,0.00013698,2]
[346544566,1735067444571,-591.01524665,0.00013698,2]
[346544567,1735067444580,-500.0,0.00013698,2]